[Event "Kupreichik Memorial Rapid 2019"]
[Site "Minsk"]
[Date "2019.08.16"]
[Round "5.35"]
[White "Shakhadanau, Henadzi"]
[Black "Makarau, Yauheni"]
[Result "1/2-1/2"]
[ECO "B01"]
[WhiteElo "1868"]
[BlackElo "1459"]
[Annotator "NA"]
[PlyCount "67"]
[EventDate "2019.08.15"]
[EventType "swiss"]
[EventCountry "BLR"]
[SourceTitle "playchess.com"]
[Source "ChessBase"]
[SourceQuality "1"]
[TimeControl "900+10"]

1. e4 {[%emt 0:00:00]} d5 {[%emt 0:00:00]} 2. exd5 {[%emt 0:00:00]} Qxd5 {[%emt 0:00:07]} 3. Nc3 {[%emt 0:00:00]} Qa5 {[%emt 0:00:01]} 4. d4 {[%emt 0:00:00]} Nf6 {[%emt 0:00:02]} 5. Nf3 {[%emt 0:00:36]} Bg4 {[%emt 0:00:01]} 6. Be2 {[%emt 0:00:10]} Nc6 {[%emt 0:00:02]} 7. h3 {[%emt 0:02:07]} Bxf3 {[%emt 0:00:32]} 8. Bxf3 {[%emt 0:00:01]} O-O-O {[%emt 0:00:30]} 9. Bxc6 {[%emt 0:00:07]} bxc6 {[%emt 0:00:01]} 10. O-O {[%emt 0:00:31]} e5 {[%emt 0:00:02]} 11. Ne2 {[%emt 0:04:26]} exd4 {[%emt 0:02:15]} 12. Bd2 {[%emt 0:01:52]} Qb6 {[%emt 0:01:37]} 13. Bg5 {[%emt 0:00:48]} c5 {[%emt 0:01:07]} 14. Qd3 {[%emt 0:00:17]} h6 {[%emt 0:01:14]} 15. Bxf6 {[%emt 0:01:06]} Qxf6 {[%emt 0:00:12]} 16. a3 {[%emt 0:00:03]} Qc6 {[%emt 0:03:57]} 17. Qc4 {[%emt 0:00:22]} Qd5 {[%emt 0:01:07]} 18. Qa6+ {[%emt 0:00:16]} Qb7 {[%emt 0:00:02]} 19. Qc4 {[%emt 0:00:01]} Qd5 {[%emt 0:00:35]} 20. Qa6+ {[%emt 0:00:35]} Qb7 {[%emt 0:00:01]} 21. Qd3 {[%emt 0:00:07]} Qc6 {[%emt 0:00:54]} 22. b3 {[%emt 0:00:03]} Bd6 {[%emt 0:00:27]} 23. Qc4 {[%emt 0:00:17]} Qe8 {[%emt 0:02:24]} 24. Rfe1 {[%emt 0:01:40]} Qd7 {[%emt 0:00:16]} 25. b4 {[%emt 0:00:19]} Qf5 {[%emt 0:01:04]} 26. Qa6+ {[%emt 0:00:45]} Kb8 {[%emt 0:00:07]} 27. bxc5 {[%emt 0:00:39]} Bxc5 {[%emt 0:00:00]} 28. Qb5+ {[%emt 0:00:28]} Kc8 {[%emt 0:00:17]} 29. Rab1 {[%emt 0:00:28]} d3 {[%emt 0:00:26]} 30. Qb7+ {[%emt 0:00:52]} Kd7 {[%emt 0:00:02]} 31. Qb5+ {[%emt 0:00:05]} Kc8 {[%emt 0:00:00]} 32. Qb7+ {[%emt 0:00:29]} Kd7 33. Qb5+ {[%emt 0:00:01]} Kc8 {[%emt 0:00:27]} 34. Qb7+ {[%emt 0:00:32]} 1/2-1/2

[Event "Kupreichik Memorial Rapid 2019"]
[Site "Minsk"]
[Date "2019.08.16"]
[Round "5.36"]
[White "Kashtelyan, Valentin"]
[Black "Ustiugov, Boris"]
[Result "1/2-1/2"]
[ECO "B53"]
[WhiteElo "1488"]
[BlackElo "1567"]
[Annotator "NA"]
[PlyCount "194"]
[EventDate "2019.08.15"]
[EventType "swiss"]
[EventCountry "BLR"]
[SourceTitle "playchess.com"]
[Source "ChessBase"]
[SourceQuality "1"]
[TimeControl "900+10"]

1. e4 c5 2. Nf3 {[%emt 0:00:26]} d6 {[%emt 0:00:01]} 3. d4 {[%emt 0:00:05]} cxd4 {[%emt 0:00:01]} 4. Qxd4 {[%emt 0:00:02]} Nc6 {[%emt 0:00:05]} 5. Bb5 {[%emt 0:00:03]} Bd7 {[%emt 0:00:01]} 6. Bxc6 {[%emt 0:00:03]} Bxc6 {[%emt 0:00:08]} 7. Nc3 {[%emt 0:00:01]} e6 {[%emt 0:00:19]} 8. Bg5 {[%emt 0:00:14]} Nf6 {[%emt 0:00:22]} 9. Bxf6 {[%emt 0:00:23]} gxf6 {[%emt 0:00:14]} 10. O-O-O {[%emt 0:00:11]} Be7 {[%emt 0:00:34]} 11. g3 {[%emt 0:00:18]} Qa5 {[%emt 0:00:26]} 12. Kb1 {[%emt 0:00:18]} O-O-O {[%emt 0:00:19]} 13. Rhe1 {[%emt 0:00:35]} Kb8 {[%emt 0:00:09]} 14. Nd2 {[%emt 0:00:09]} Rd7 {[%emt 0:01:02]} 15. f4 {[%emt 0:01:24]} Rhd8 {[%emt 0:01:12]} 16. Nb3 {[%emt 0:00:34]} Qc7 {[%emt 0:01:10]} 17. Qe3 {[%emt 0:01:20]} Rc8 {[%emt 0:00:46]} 18. Rc1 {[%emt 0:00:31]} b6 {[%emt 0:01:38]} 19. Nd4 Bb7 {[%emt 0:00:37]} 20. Red1 {[%emt 0:01:51]} Qc5 {[%emt 0:00:34]} 21. Qe2 {[%emt 0:00:43]} a6 {[%emt 0:01:02]} 22. f5 {[%emt 0:00:44]} e5 {[%emt 0:00:23]} 23. Nb3 {[%emt 0:00:12]} Qc4 {[%emt 0:00:37]} 24. Qe3 {[%emt 0:00:38]} Qc7 {[%emt 0:00:42]} 25. Nd5 {[%emt 0:00:10]} Bxd5 {[%emt 0:00:03]} 26. Rxd5 {[%emt 0:00:04]} Qb7 {[%emt 0:00:31]} 27. Rcd1 {[%emt 0:01:06]} Rc4 {[%emt 0:00:23]} 28. c3 {[%emt 0:00:32]} Rdc7 {[%emt 0:00:29]} 29. Nd2 {[%emt 0:00:35]} R4c6 {[%emt 0:00:20]} 30. Qh6 {[%emt 0:01:24]} Qc8 {[%emt 0:00:26]} 31. Rc1 {[%emt 0:00:40]} Qg8 {[%emt 0:00:25]} 32. Qe3 {[%emt 0:00:25]} Kb7 {[%emt 0:00:22]} 33. Nb3 {[%emt 0:00:35]} Qg5 {[%emt 0:00:15]} 34. Qe2 {[%emt 0:00:18]} h5 {[%emt 0:00:11]} 35. h4 {[%emt 0:00:26]} Qg4 {[%emt 0:00:59]} 36. Qxg4 {[%emt 0:00:03]} hxg4 {[%emt 0:00:01]} 37. Nd2 {[%emt 0:00:33]} b5 {[%emt 0:00:09]} 38. Nb3 {[%emt 0:00:06]} Kb6 {[%emt 0:00:08]} 39. Rd3 {[%emt 0:00:48]} Bf8 {[%emt 0:00:03]} 40. Rcd1 {[%emt 0:00:21]} Rd7 {[%emt 0:00:22]} 41. Nd2 {[%emt 0:00:31]} a5 {[%emt 0:00:11]} 42. Nf1 {[%emt 0:00:25]} Rc4 {[%emt 0:00:32]} 43. Nd2 {[%emt 0:00:07]} Rc6 {[%emt 0:00:08]} 44. Nf1 {[%emt 0:00:04]} Rc4 {[%emt 0:00:33]} 45. Nd2 {[%emt 0:00:02]} Rc6 {[%emt 0:00:58]} 46. Nf1 {[%emt 0:00:04]} Bh6 {[%emt 0:00:04]} 47. b3 {[%emt 0:00:22]} Kc7 {[%emt 0:00:23]} 48. Kb2 {[%emt 0:00:16]} Kd8 {[%emt 0:00:14]} 49. Nh2 {[%emt 0:00:07]} Ke7 {[%emt 0:00:28]} 50. Nxg4 {[%emt 0:00:05]} Bg7 {[%emt 0:00:01]} 51. h5 {[%emt 0:00:11]} Rd8 {[%emt 0:00:05]} 52. h6 {[%emt 0:00:09]} Bh8 {[%emt 0:00:02]} 53. Ne3 {[%emt 0:00:18]} Rg8 {[%emt 0:00:32]} 54. R1d2 {[%emt 0:00:13]} Rg5 {[%emt 0:00:25]} 55. g4 {[%emt 0:00:10]} Rg8 {[%emt 0:00:24]} 56. Rd5 {[%emt 0:00:14]} Rb6 {[%emt 0:00:03]} 57. Rc2 {[%emt 0:00:48]} Rc8 {[%emt 0:00:08]} 58. Rd1 {[%emt 0:00:10]} Rbc6 {[%emt 0:00:03]} 59. Rg1 {[%emt 0:00:12]} b4 {[%emt 0:00:23]} 60. Nd5+ {[%emt 0:00:13]} Kd7 {[%emt 0:00:29]} 61. c4 {[%emt 0:00:07]} a4 {[%emt 0:00:03]} 62. bxa4 {[%emt 0:00:13]} Ra6 {[%emt 0:00:20]} 63. Kb3 {[%emt 0:00:42]} Rca8 {[%emt 0:00:16]} 64. Nxb4 {[%emt 0:00:21]} Rxa4 {[%emt 0:00:03]} 65. Rc3 {[%emt 0:00:37]} Ra3+ {[%emt 0:00:13]} 66. Kb2 {[%emt 0:00:01]} Rxc3 {[%emt 0:00:09]} 67. Kxc3 {[%emt 0:00:04]} Ra3+ {[%emt 0:00:05]} 68. Kc2 {[%emt 0:00:06]} Re3 {[%emt 0:00:07]} 69. g5 {[%emt 0:00:10]} fxg5 {[%emt 0:00:07]} 70. Rxg5 {[%emt 0:00:02]} Rxe4 {[%emt 0:00:06]} 71. Kd3 {[%emt 0:00:05]} Rh4 {[%emt 0:00:07]} 72. Nd5 {[%emt 0:00:11]} Rxh6 {[%emt 0:00:07]} 73. Rg1 {[%emt 0:00:09]} Rh3+ {[%emt 0:00:05]} 74. Ke4 {[%emt 0:00:06]} Rh4+ {[%emt 0:00:13]} 75. Kd3 {[%emt 0:00:04]} Rd4+ {[%emt 0:00:04]} 76. Kc3 {[%emt 0:00:01]} Rh4 {[%emt 0:00:05]} 77. f6 {[%emt 0:00:05]} Rh6 {[%emt 0:00:02]} 78. Rf1 {[%emt 0:00:05]} Rh3+ {[%emt 0:00:08]} 79. Kb4 {[%emt 0:00:09]} Kc6 {[%emt 0:00:16]} 80. a4 {[%emt 0:00:03]} Rh2 {[%emt 0:00:18]} 81. Ne7+ {[%emt 0:00:07]} Kb7 {[%emt 0:00:03]} 82. Rb1 {[%emt 0:00:11]} Bxf6 {[%emt 0:00:08]} 83. Nd5 {[%emt 0:00:07]} Bg5 {[%emt 0:00:10]} 84. Kb5 {[%emt 0:00:09]} Bd8 {[%emt 0:00:11]} 85. a5 {[%emt 0:00:08]} Rd2 {[%emt 0:00:14]} 86. a6+ {[%emt 0:00:09]} Ka7 {[%emt 0:00:04]} 87. Kc6 {[%emt 0:00:07]} Rc2 {[%emt 0:00:18]} 88. Rb4 {[%emt 0:00:10]} f5 {[%emt 0:00:09]} 89. Kxd6 {[%emt 0:00:11]} f4 {[%emt 0:00:10]} 90. Rb7+ {[%emt 0:00:15]} Ka8 {[%emt 0:00:03]} 91. Rf7 {[%emt 0:00:03]} Rxc4 {[%emt 0:00:07]} 92. Rf8 {[%emt 0:00:06]} Ka7 {[%emt 0:00:09]} 93. Rxd8 {[%emt 0:00:04]} f3 {[%emt 0:00:07]} 94. Rf8 {[%emt 0:00:03]} Kxa6 {[%emt 0:00:05]} 95. Kxe5 {[%emt 0:00:02]} Kb5 {[%emt 0:00:09]} 96. Rxf3 {[%emt 0:00:05]} Kc5 {[%emt 0:00:11]} 97. Rc3 {[%emt 0:00:05]} Rxc3 {[%emt 0:00:03]} 1/2-1/2

[Event "Kupreichik Memorial Rapid 2019"]
[Site "Minsk"]
[Date "2019.08.16"]
[Round "5.37"]
[White "Nikolaev, Dmitry"]
[Black "Harbuz, Yaraslau"]
[Result "1-0"]
[ECO "A04"]
[WhiteElo "1677"]
[BlackElo "1359"]
[Annotator "NA"]
[PlyCount "73"]
[EventDate "2019.08.15"]
[EventType "swiss"]
[EventCountry "BLR"]
[SourceTitle "playchess.com"]
[Source "ChessBase"]
[SourceQuality "1"]
[TimeControl "900+10"]

1. Nf3 {[%emt 0:00:00]} f5 {[%emt 0:00:03]} 2. c4 {[%emt 0:00:02]} Nf6 {[%emt 0:00:04]} 3. g3 {[%emt 0:00:15]} g6 {[%emt 0:00:10]} 4. b3 {[%emt 0:00:01]} Bg7 {[%emt 0:00:05]} 5. Bb2 {[%emt 0:00:02]} O-O {[%emt 0:00:03]} 6. Bg2 {[%emt 0:00:03]} c6 {[%emt 0:00:20]} 7. O-O {[%emt 0:00:20]} d6 {[%emt 0:00:07]} 8. d4 {[%emt 0:00:26]} Nbd7 {[%emt 0:01:32]} 9. Nbd2 {[%emt 0:01:33]} Qc7 {[%emt 0:00:08]} 10. Ng5 {[%emt 0:00:11]} Nb6 {[%emt 0:00:30]} 11. e4 {[%emt 0:00:54]} h6 {[%emt 0:00:43]} 12. Nh3 {[%emt 0:00:13]} fxe4 {[%emt 0:00:17]} 13. Nf4 {[%emt 0:00:22]} Bf5 {[%emt 0:01:49]} 14. Rc1 {[%emt 0:02:39]} e5 {[%emt 0:01:51]} 15. dxe5 {[%emt 0:00:16]} dxe5 {[%emt 0:00:03]} 16. Ne2 {[%emt 0:00:36]} Rad8 {[%emt 0:00:13]} 17. Nc3 {[%emt 0:00:21]} h5 {[%emt 0:01:04]} 18. Qe1 {[%emt 0:00:38]} Bh6 {[%emt 0:00:53]} 19. Rd1 {[%emt 0:00:28]} e3 {[%emt 0:01:41]} 20. fxe3 {[%emt 0:00:04]} Rd3 {[%emt 0:00:04]} 21. e4 {[%emt 0:01:07]} Re3 {[%emt 0:00:48]} 22. Qf2 {[%emt 0:00:06]} Bg4 {[%emt 0:00:05]} 23. Rde1 {[%emt 0:00:47]} Rd3 {[%emt 0:00:17]} 24. Ndb1 {[%emt 0:03:59]} Nxe4 {[%emt 0:00:49]} 25. Qc2 {[%emt 0:00:44]} Nc5 {[%emt 0:02:46]} 26. Rxf8+ {[%emt 0:00:56]} Kxf8 {[%emt 0:00:11]} 27. Ba3 {[%emt 0:00:12]} Qd6 {[%emt 0:02:01]} 28. Qf2+ {[%emt 0:00:13]} Kg7 {[%emt 0:00:49]} 29. Bxc5 {[%emt 0:00:04]} Qe6 {[%emt 0:00:12]} 30. Bf8+ {[%emt 0:00:30]} Kh7 {[%emt 0:00:06]} 31. Bxh6 {[%emt 0:00:02]} Kxh6 {[%emt 0:00:01]} 32. Ne4 {[%emt 0:00:39]} Qd7 {[%emt 0:00:21]} 33. Nf6 {[%emt 0:00:10]} Qd8 {[%emt 0:00:13]} 34. Nxg4+ {[%emt 0:00:14]} hxg4 {[%emt 0:00:02]} 35. Rxe5 {[%emt 0:00:23]} Rd1+ {[%emt 0:00:08]} 36. Re1 {[%emt 0:00:02]} Rd2 {[%emt 0:00:03]} 37. Nxd2 {[%emt 0:00:03]} 1-0

[Event "Kupreichik Memorial Rapid 2019"]
[Site "Minsk"]
[Date "2019.08.16"]
[Round "5.39"]
[White "Novik, Nikita"]
[Black "Strizhnev, Ivan"]
[Result "0-1"]
[ECO "B50"]
[WhiteElo "1355"]
[BlackElo "1394"]
[Annotator "NA"]
[PlyCount "88"]
[EventDate "2019.08.15"]
[EventType "swiss"]
[EventCountry "BLR"]
[SourceTitle "playchess.com"]
[Source "ChessBase"]
[SourceQuality "1"]
[TimeControl "900+10"]

1. e4 {[%emt 0:00:00]} c5 {[%emt 0:00:00]} 2. Nf3 {[%emt 0:00:00]} d6 {[%emt 0:00:00]} 3. Nc3 {[%emt 0:00:15]} Nf6 {[%emt 0:00:09]} 4. d3 {[%emt 0:00:02]} g6 {[%emt 0:00:02]} 5. g3 {[%emt 0:00:06]} Bg7 {[%emt 0:00:03]} 6. Bg2 {[%emt 0:00:02]} Nc6 {[%emt 0:00:09]} 7. Be3 {[%emt 0:00:06]} O-O {[%emt 0:00:14]} 8. Qd2 {[%emt 0:00:22]} Ng4 {[%emt 0:00:36]} 9. h3 {[%emt 0:01:18]} Nxe3 {[%emt 0:00:03]} 10. Qxe3 {[%emt 0:00:08]} Nd4 {[%emt 0:00:26]} 11. Qd2 {[%emt 0:00:54]} Bd7 {[%emt 0:00:58]} 12. Nxd4 {[%emt 0:00:27]} cxd4 {[%emt 0:00:02]} 13. Ne2 {[%emt 0:00:15]} Rc8 {[%emt 0:00:11]} 14. c3 {[%emt 0:01:17]} dxc3 {[%emt 0:00:12]} 15. Nxc3 {[%emt 0:00:02]} Qa5 {[%emt 0:00:27]} 16. Rc1 {[%emt 0:00:56]} Rc7 {[%emt 0:00:17]} 17. O-O {[%emt 0:01:25]} Rfc8 {[%emt 0:00:06]} 18. d4 {[%emt 0:03:52]} Rc4 {[%emt 0:00:13]} 19. e5 {[%emt 0:00:33]} dxe5 {[%emt 0:02:53]} 20. dxe5 {[%emt 0:00:08]} Rd8 {[%emt 0:00:27]} 21. Qe2 {[%emt 0:02:40]} Rd4 {[%emt 0:00:11]} 22. f4 {[%emt 0:01:08]} Qb6 {[%emt 0:00:23]} 23. Kh2 {[%emt 0:00:37]} Bc6 {[%emt 0:01:05]} 24. Bxc6 {[%emt 0:00:13]} Rd2 {[%emt 0:00:32]} 25. Bf3 {[%emt 0:00:19]} Rxe2+ {[%emt 0:00:12]} 26. Nxe2 {[%emt 0:00:02]} Qxb2 {[%emt 0:00:43]} 27. Rb1 {[%emt 0:00:08]} Qxa2 {[%emt 0:00:16]} 28. Rxb7 {[%emt 0:00:42]} Rd2 {[%emt 0:00:41]} 29. Rb8+ {[%emt 0:01:17]} Bf8 {[%emt 0:00:04]} 30. Re1 {[%emt 0:00:33]} e6 {[%emt 0:00:33]} 31. h4 {[%emt 0:00:05]} Kg7 {[%emt 0:00:08]} 32. Kh3 {[%emt 0:00:11]} Bc5 {[%emt 0:00:42]} 33. Rbb1 {[%emt 0:00:06]} Bf2 {[%emt 0:00:07]} 34. Ra1 {[%emt 0:00:06]} Bxe1 {[%emt 0:00:57]} 35. Rxa2 {[%emt 0:00:02]} Rxa2 {[%emt 0:00:02]} 36. h5 {[%emt 0:00:21]} a5 {[%emt 0:00:11]} 37. g4 {[%emt 0:00:04]} gxh5 {[%emt 0:00:04]} 38. gxh5 {[%emt 0:00:03]} a4 {[%emt 0:00:13]} 39. Nd4 {[%emt 0:00:30]} Rd2 {[%emt 0:00:37]} 40. Nb5 {[%emt 0:00:09]} a3 {[%emt 0:00:32]} 41. Nxa3 {[%emt 0:00:12]} Rd3 {[%emt 0:00:03]} 42. Nc4 {[%emt 0:00:08]} Rxf3+ {[%emt 0:00:05]} 43. Kg4 {[%emt 0:00:01]} Rg3+ {[%emt 0:00:04]} 44. Kh4 {[%emt 0:00:08]} Rc3+ {[%emt 0:00:04]} 0-1

[Event "Kupreichik Memorial Rapid 2019"]
[Site "Minsk"]
[Date "2019.08.16"]
[Round "6.1"]
[White "Tiviakov, Sergei"]
[Black "Safarli, Eltaj"]
[Result "1/2-1/2"]
[ECO "C54"]
[WhiteElo "2611"]
[BlackElo "2593"]
[Annotator "ChessBase"]
[PlyCount "34"]
[EventDate "2019.08.15"]
[EventType "swiss"]
[EventCountry "BLR"]
[SourceTitle "playchess.com"]
[Source "ChessBase"]
[SourceQuality "1"]
[TimeControl "900+10"]

1. e4 {[%emt 0:00:00]} e5 {[%emt 0:00:00]} 2. Nf3 {[%emt 0:00:00]} Nc6 {[%emt 0:00:00]} 3. Bc4 {[%emt 0:00:00]} Bc5 {[%emt 0:00:00]} 4. c3 {[%emt 0:00:00]} Nf6 {[%emt 0:00:00]} 5. d3 {[%emt 0:00:00]} h6 {[%emt 0:00:00]} 6. Bb3 {[%emt 0:00:03]} d6 {[%emt 0:00:08]} 7. Nbd2 {[%emt 0:00:08]} Be6 {[%emt 0:00:43]} 8. h3 {[%emt 0:00:22]} O-O {[%emt 0:00:06]} 9. Nf1 {[%emt 0:00:07]} d5 {[%emt 0:00:08]} 10. Qe2 {[%emt 0:00:02]} Na5 {[%emt 0:01:23]} 11. Bxd5 {[%emt 0:04:30]} Bxd5 {[%emt 0:00:02]} 12. exd5 {[%emt 0:00:03]} Nxd5 {[%emt 0:00:01]} 13. Ng3 {[%emt 0:02:06]} Nc6 {[%emt 0:01:14]} 14. O-O {[%emt 0:00:12]} Re8 {[%emt 0:00:03]} 15. Qe4 {[%emt 0:01:47]} Nf6 {[%emt 0:00:49]} 16. Qe2 {[%emt 0:00:03]} Nd5 {[%emt 0:00:33]} 17. Qe4 {[%emt 0:00:02]} Nf6 {[%emt 0:00:01]} 1/2-1/2

[Event "Kupreichik Memorial Rapid 2019"]
[Site "Minsk"]
[Date "2019.08.16"]
[Round "6.2"]
[White "Zhigalko, Sergei"]
[Black "Aleksandrov, Aleksej"]
[Result "1/2-1/2"]
[ECO "C50"]
[WhiteElo "2574"]
[BlackElo "2571"]
[Annotator "ChessBase"]
[PlyCount "60"]
[EventDate "2019.08.15"]
[EventType "swiss"]
[EventCountry "BLR"]
[SourceTitle "playchess.com"]
[Source "ChessBase"]
[SourceQuality "1"]
[TimeControl "900+10"]

1. e4 {[%emt 0:00:00]} e5 {[%emt 0:00:00]} 2. Nf3 {[%emt 0:00:00]} Nc6 {[%emt 0:00:00]} 3. Bc4 {[%emt 0:00:00]} Bc5 {[%emt 0:00:00]} 4. O-O {[%emt 0:00:00]} Nf6 {[%emt 0:00:00]} 5. d3 {[%emt 0:00:00]} d6 {[%emt 0:00:00]} 6. c3 {[%emt 0:00:05]} h6 {[%emt 0:00:01]} 7. Re1 {[%emt 0:00:45]} O-O {[%emt 0:00:03]} 8. Nbd2 {[%emt 0:00:11]} a6 {[%emt 0:00:01]} 9. Bb3 {[%emt 0:00:13]} Be6 {[%emt 0:00:02]} 10. Nf1 {[%emt 0:00:16]} Bxb3 {[%emt 0:00:05]} 11. Qxb3 {[%emt 0:00:07]} Re8 {[%emt 0:00:18]} 12. Be3 {[%emt 0:00:38]} Bxe3 {[%emt 0:00:04]} 13. Nxe3 {[%emt 0:00:01]} Qd7 {[%emt 0:00:12]} 14. Rad1 {[%emt 0:00:10]} b5 {[%emt 0:00:22]} 15. h3 {[%emt 0:02:43]} Rad8 {[%emt 0:00:24]} 16. Rd2 {[%emt 0:01:03]} Ne7 {[%emt 0:00:40]} 17. Nf1 {[%emt 0:01:58]} Ng6 {[%emt 0:00:17]} 18. Ng3 {[%emt 0:00:08]} d5 {[%emt 0:01:59]} 19. d4 {[%emt 0:02:17]} exd4 {[%emt 0:01:26]} 20. Rxd4 {[%emt 0:00:07]} c5 {[%emt 0:00:09]} 21. Rdd1 {[%emt 0:00:22]} Qc6 {[%emt 0:00:07]} 22. exd5 {[%emt 0:03:12]} Rxe1+ {[%emt 0:00:21]} 23. Nxe1 {[%emt 0:00:05]} Rxd5 {[%emt 0:00:10]} 24. Rxd5 {[%emt 0:00:38]} Nxd5 {[%emt 0:00:01]} 25. Qc2 {[%emt 0:01:01]} Nf6 {[%emt 0:00:28]} 26. Qf5 {[%emt 0:00:26]} Qd6 {[%emt 0:00:14]} 27. Nf3 {[%emt 0:01:26]} Qd1+ {[%emt 0:00:30]} 28. Kh2 {[%emt 0:00:01]} Qd6 {[%emt 0:00:01]} 29. Kg1 {[%emt 0:00:09]} Qd1+ {[%emt 0:00:25]} 30. Kh2 {[%emt 0:00:00]} Qd6 {[%emt 0:00:01]} 1/2-1/2

[Event "Kupreichik Memorial Rapid 2019"]
[Site "Minsk"]
[Date "2019.08.16"]
[Round "6.3"]
[White "Zhukova, Natalia"]
[Black "Dydyshko, Viacheslav"]
[Result "1-0"]
[ECO "E77"]
[WhiteElo "2333"]
[BlackElo "2506"]
[Annotator "ChessBase"]
[PlyCount "63"]
[EventDate "2019.08.15"]
[EventType "swiss"]
[EventCountry "BLR"]
[SourceTitle "playchess.com"]
[Source "ChessBase"]
[SourceQuality "1"]
[TimeControl "900+10"]

1. c4 {[%emt 0:00:00]} Nf6 {[%emt 0:00:00]} 2. Nc3 {[%emt 0:00:00]} g6 {[%emt 0:00:19]} 3. e4 {[%emt 0:00:00]} d6 {[%emt 0:00:01]} 4. d4 {[%emt 0:00:00]} Bg7 {[%emt 0:00:01]} 5. f4 {[%emt 0:00:05]} c5 {[%emt 0:00:20]} 6. d5 {[%emt 0:00:03]} O-O {[%emt 0:00:36]} 7. Nf3 {[%emt 0:00:02]} e6 {[%emt 0:00:17]} 8. dxe6 {[%emt 0:00:03]} Bxe6 {[%emt 0:00:18]} 9. Bd3 {[%emt 0:00:02]} Bg4 {[%emt 0:00:30]} 10. h3 {[%emt 0:00:20]} Bxf3 11. Qxf3 {[%emt 0:00:02]} Nc6 {[%emt 0:00:04]} 12. O-O {[%emt 0:00:03]} a6 {[%emt 0:00:20]} 13. Be3 {[%emt 0:01:15]} Rb8 {[%emt 0:00:27]} 14. Rad1 {[%emt 0:00:17]} Re8 {[%emt 0:00:45]} 15. Qf2 {[%emt 0:02:10]} Qa5 {[%emt 0:00:55]} 16. Bb1 {[%emt 0:01:22]} Rbd8 {[%emt 0:00:45]} 17. f5 {[%emt 0:02:48]} Rf8 {[%emt 0:05:53]} 18. g4 {[%emt 0:02:21]} h6 {[%emt 0:00:48]} 19. g5 {[%emt 0:00:22]} hxg5 {[%emt 0:00:57]} 20. Bxg5 {[%emt 0:00:02]} Rde8 {[%emt 0:00:19]} 21. Rxd6 {[%emt 0:00:57]} Nh7 {[%emt 0:00:06]} 22. Be3 {[%emt 0:00:04]} Ne5 {[%emt 0:00:12]} 23. Bxc5 {[%emt 0:00:44]} Ng5 {[%emt 0:00:40]} 24. Kg2 {[%emt 0:00:23]} Nxc4 {[%emt 0:00:59]} 25. Rd5 {[%emt 0:00:22]} Qc7 {[%emt 0:00:07]} 26. f6 {[%emt 0:01:20]} Bh6 {[%emt 0:00:20]} 27. Qh4 {[%emt 0:00:16]} Kh7 {[%emt 0:00:02]} 28. Rxg5 {[%emt 0:00:09]} Rh8 {[%emt 0:00:01]} 29. Rh5 {[%emt 0:01:37]} Ne3+ {[%emt 0:00:53]} 30. Bxe3 {[%emt 0:01:07]} gxh5 {[%emt 0:00:03]} 31. e5+ {[%emt 0:00:18]} Kg8 {[%emt 0:00:01]} 32. Qg3+ {[%emt 0:00:05]} 1-0

[Event "Kupreichik Memorial Rapid 2019"]
[Site "Minsk"]
[Date "2019.08.16"]
[Round "6.4"]
[White "Pein, Malcolm"]
[Black "Sveshnikov, Evgeny"]
[Result "1/2-1/2"]
[ECO "A13"]
[WhiteElo "2312"]
[BlackElo "2483"]
[Annotator "ChessBase"]
[PlyCount "141"]
[EventDate "2019.08.15"]
[EventType "swiss"]
[EventCountry "BLR"]
[SourceTitle "playchess.com"]
[Source "ChessBase"]
[SourceQuality "1"]
[TimeControl "900+10"]

1. Nf3 {[%emt 0:00:00]} d5 {[%emt 0:00:00]} 2. c4 {[%emt 0:00:00]} e6 {[%emt 0:00:00]} 3. g3 {[%emt 0:00:12]} dxc4 {[%emt 0:00:15]} 4. Qa4+ {[%emt 0:00:07]} Bd7 {[%emt 0:00:12]} 5. Qxc4 {[%emt 0:00:03]} c5 {[%emt 0:00:01]} 6. Bg2 {[%emt 0:00:38]} Nc6 {[%emt 0:00:02]} 7. O-O {[%emt 0:00:11]} Rc8 {[%emt 0:00:29]} 8. b3 {[%emt 0:00:45]} Nf6 {[%emt 0:02:08]} 9. Bb2 {[%emt 0:00:04]} Be7 {[%emt 0:00:01]} 10. Nc3 {[%emt 0:01:55]} O-O {[%emt 0:00:17]} 11. Ne4 {[%emt 0:01:40]} Nxe4 {[%emt 0:04:01]} 12. Qxe4 {[%emt 0:00:02]} Bf6 {[%emt 0:00:04]} 13. Bxf6 {[%emt 0:00:16]} Qxf6 {[%emt 0:00:01]} 14. Rfc1 {[%emt 0:01:35]} Rfd8 {[%emt 0:00:52]} 15. Rab1 {[%emt 0:00:32]} b6 {[%emt 0:00:34]} 16. a3 {[%emt 0:00:33]} e5 {[%emt 0:00:41]} 17. d3 {[%emt 0:00:15]} Be6 {[%emt 0:03:24]} 18. Qa4 {[%emt 0:01:01]} Qe7 {[%emt 0:00:03]} 19. b4 {[%emt 0:01:26]} Nd4 {[%emt 0:00:15]} 20. Nxd4 {[%emt 0:00:29]} cxd4 {[%emt 0:00:01]} 21. Qa6 {[%emt 0:00:39]} Rc3 {[%emt 0:00:19]} 22. Rxc3 {[%emt 0:00:49]} dxc3 {[%emt 0:00:01]} 23. Rc1 {[%emt 0:00:00]} Rc8 {[%emt 0:00:38]} 24. Bd5 {[%emt 0:00:33]} Rc7 {[%emt 0:01:27]} 25. Bc4 {[%emt 0:00:15]} Bxc4 {[%emt 0:00:03]} 26. dxc4 {[%emt 0:00:01]} Qd7 {[%emt 0:00:09]} 27. Rxc3 {[%emt 0:00:10]} Qd1+ {[%emt 0:00:03]} 28. Kg2 {[%emt 0:00:02]} Qxe2 {[%emt 0:00:02]} 29. Re3 {[%emt 0:01:00]} Qxc4 {[%emt 0:00:09]} 30. Rxe5 {[%emt 0:00:07]} Qc6+ {[%emt 0:01:01]} 31. Kg1 {[%emt 0:00:27]} g6 {[%emt 0:00:34]} 32. Qe2 {[%emt 0:00:27]} Qf6 {[%emt 0:00:09]} 33. Kg2 {[%emt 0:00:23]} Kg7 {[%emt 0:00:02]} 34. h4 {[%emt 0:00:20]} h5 {[%emt 0:00:07]} 35. Re8 {[%emt 0:00:28]} Rc3 {[%emt 0:00:08]} 36. Re3 {[%emt 0:00:13]} Rc1 {[%emt 0:00:13]} 37. Re7 {[%emt 0:00:51]} Qc6+ {[%emt 0:00:13]} 38. Qe4 {[%emt 0:00:02]} Qxe4+ {[%emt 0:00:08]} 39. Rxe4 {[%emt 0:00:01]} Rc3 {[%emt 0:00:03]} 40. a4 {[%emt 0:00:10]} Kf6 {[%emt 0:00:02]} 41. Kf1 {[%emt 0:00:11]} Rc2 {[%emt 0:00:33]} 42. Ke1 {[%emt 0:00:05]} a5 {[%emt 0:00:07]} 43. bxa5 {[%emt 0:00:02]} bxa5 {[%emt 0:00:01]} 44. Rd4 {[%emt 0:01:52]} Ke6 {[%emt 0:00:12]} 45. Re4+ {[%emt 0:00:21]} Kd6 {[%emt 0:00:02]} 46. Kf1 {[%emt 0:00:36]} Ra2 {[%emt 0:00:23]} 47. Kg2 {[%emt 0:00:02]} f5 {[%emt 0:00:27]} 48. Re8 {[%emt 0:00:08]} Rxa4 {[%emt 0:00:07]} 49. Rg8 {[%emt 0:00:02]} Re4 {[%emt 0:00:17]} 50. Rxg6+ {[%emt 0:00:02]} Re6 {[%emt 0:00:01]} 51. Rg5 {[%emt 0:00:04]} Rf6 {[%emt 0:00:10]} 52. Rxh5 {[%emt 0:00:03]} a4 {[%emt 0:00:01]} 53. Rh8 {[%emt 0:00:13]} Kc5 {[%emt 0:00:02]} 54. Ra8 {[%emt 0:00:01]} Kb4 {[%emt 0:00:02]} 55. Rb8+ {[%emt 0:00:03]} Ka5 {[%emt 0:00:09]} 56. Kf3 {[%emt 0:00:28]} a3 {[%emt 0:00:01]} 57. Rb1 {[%emt 0:00:04]} Ka4 {[%emt 0:00:13]} 58. Kf4 {[%emt 0:00:07]} a2 {[%emt 0:00:08]} 59. Ra1 {[%emt 0:00:04]} Kb3 {[%emt 0:00:02]} 60. Kg5 {[%emt 0:00:02]} Rf8 {[%emt 0:00:15]} 61. h5 {[%emt 0:00:05]} Kb2 {[%emt 0:00:05]} 62. Rxa2+ {[%emt 0:00:01]} Kxa2 {[%emt 0:00:01]} 63. h6 {[%emt 0:00:02]} Kb3 {[%emt 0:00:04]} 64. Kg6 {[%emt 0:00:05]} Kc4 {[%emt 0:00:04]} 65. h7 {[%emt 0:00:06]} Kd3 {[%emt 0:00:12]} 66. Kg7 {[%emt 0:00:12]} Ra8 {[%emt 0:00:01]} 67. h8=Q {[%emt 0:00:03]} Rxh8 {[%emt 0:00:02]} 68. Kxh8 {[%emt 0:00:01]} Ke2 {[%emt 0:00:01]} 69. Kg7 {[%emt 0:00:16]} Kxf2 {[%emt 0:00:02]} 70. Kf6 {[%emt 0:00:01]} Kxg3 {[%emt 0:00:02]} 71. Kxf5 1/2-1/2